bitfinex-derivatives/quotes_BTCF0:USTF0_20250510
["timestamp","ask_amount","ask_price","bid_price","bid_amount"]
[1746864207758,0.81707782,103880.0,103870.0,0.01761719]
[1746864207961,0.81707782,103880.0,103870.0,0.005]
[1746864210369,0.7101689,103880.0,103870.0,0.005]
[1746864210563,0.81707782,103880.0,103870.0,0.005]
[1746864210969,0.7101689,103880.0,103870.0,0.005]
[1746864211269,0.9340889,103880.0,103870.0,0.2011]
[1746864211466,0.9340889,103880.0,103870.0,0.3936194]
[1746864211467,1.1608889,103880.0,103870.0,0.3936194]
[1746864211667,1.1608889,103880.0,103870.0,0.4251194]
[1746864212774,1.1608889,103880.0,103870.0,0.2326]
[1746864212972,0.7101689,103880.0,103870.0,0.2326]
[1746864213173,1.1609289,103880.0,103870.0,0.2326]
[1746864213371,1.0646609,103880.0,103870.0,0.2326]
[1746864213976,1.0646609,103880.0,103870.0,0.4251194]
[1746864214172,0.3608,103880.0,103870.0,0.53202832]
[1746864214377,0.7801409,103880.0,103870.0,0.53202832]
[1746864214970,0.58764,103880.0,103870.0,0.53202832]
[1746864215479,0.7801409,103880.0,103870.0,0.53202832]
[1746864216478,0.58764,103880.0,103870.0,0.53202832]
[1746864216669,0.7801409,103880.0,103870.0,0.53202832]
[1746864216872,0.3608,103880.0,103870.0,0.6433486]
[1746864217080,0.3608,103890.0,103880.0,0.1925009]
[1746864217379,0.3608,103890.0,103880.0,0.40756055]
[1746864217571,0.3608,103890.0,103880.0,0.40755875]
[1746864217771,0.3608,103890.0,103880.0,0.30064983]
[1746864217975,0.3608,103890.0,103880.0,0.50381903]
[1746864218177,0.5532643,103900.0,103890.0,0.1924824]
[1746864218367,0.3608,103900.0,103890.0,0.36309132]
[1746864218674,0.5532638,103900.0,103890.0,0.36309132]
[1746864219174,0.5532638,103900.0,103890.0,0.4221824]
[1746864219373,0.5542638,103900.0,103890.0,0.52909132]
[1746864220768,0.5542638,103900.0,103890.0,0.4221824]
[1746864222269,0.5614738,103900.0,103890.0,0.4221824]
[1746864223581,0.73308272,103900.0,103890.0,0.43723045]
[1746864223801,0.76348272,103900.0,103890.0,0.1987]
[1746864224079,0.76348272,103900.0,103870.0,0.2406462]
[1746864224080,0.77417984,103900.0,103870.0,0.2406462]
[1746864224379,0.29940982,103880.0,103870.0,0.3025462]
[1746864224584,0.4163409,103880.0,103870.0,0.3025462]
[1746864225169,0.4163409,103880.0,103870.0,0.4685462]
[1746864225380,0.4163409,103880.0,103870.0,0.5002462]
[1746864226671,0.4163409,103880.0,103870.0,0.51529635]
[1746864226870,0.88404982,103880.0,103870.0,0.2007]
[1746864227069,0.97784982,103880.0,103870.0,0.0347]
[1746864227273,0.97784982,103880.0,103870.0,0.0653]
[1746864228075,0.97784982,103880.0,103870.0,0.0683]
[1746864230473,0.8709409,103880.0,103870.0,0.0683]
[1746864230672,0.97784982,103880.0,103870.0,0.0683]
[1746864232073,0.97784982,103880.0,103870.0,0.2343]
[1746864232871,0.75400982,103880.0,103870.0,0.172]
[1746864233074,1.20172982,103880.0,103870.0,0.0366]
[1746864235779,1.0948209,103880.0,103870.0,0.0366]
[1746864235986,1.20172982,103880.0,103870.0,0.0366]
[1746864236287,1.20172982,103880.0,103870.0,0.0676]
[1746864237081,1.20172982,103880.0,103870.0,0.2336]
[1746864237484,1.0948209,103880.0,103870.0,0.2336]
[1746864237686,1.20172982,103880.0,103870.0,0.2336]
[1746864238091,1.20172982,103880.0,103870.0,0.0676]
[1746864240183,1.20172982,103880.0,103870.0,0.2336]
[1746864241177,1.20172982,103880.0,103870.0,0.172]
[1746864241493,0.1925194,103870.0,103860.0,0.00394743]
[1746864241680,0.72532832,103870.0,103860.0,0.03574743]
[1746864242884,0.72532832,103870.0,103860.0,0.04074743]
[1746864244277,0.72532832,103870.0,103860.0,0.04474743]
[1746864246387,0.72532832,103870.0,103860.0,0.21074743]
[1746864246691,0.73254832,103870.0,103860.0,0.21074743]
[1746864246985,1.18006832,103870.0,103860.0,0.24134743]
[1746864247978,0.81926832,103870.0,103860.0,0.24134743]
[1746864248179,1.54086832,103870.0,103860.0,0.24134743]
[1746864252486,1.54086832,103870.0,103830.0,0.00394857]
[1746864252487,0.1925751,103840.0,103830.0,0.00394857]
[1746864252788,1.02108402,103840.0,103830.0,0.03464857]
[1746864252990,1.50182402,103840.0,103830.0,0.03464857]
[1746864253188,1.3616151,103840.0,103830.0,0.20064857]
[1746864253799,1.3616151,103840.0,103830.0,0.2800133]
[1746864253981,1.3626151,103840.0,103830.0,0.2890133]
[1746864254184,1.37083625,103840.0,103830.0,0.2890133]
[1746864254486,1.37083625,103840.0,103830.0,0.27484857]
[1746864255386,1.37183625,103840.0,103830.0,0.28184857]
[1746864257287,1.47874517,103840.0,103830.0,0.21824857]
[1746864257483,1.54184517,103840.0,103830.0,0.21824857]
[1746864257790,1.57494517,103840.0,103830.0,0.21824857]
[1746864257990,1.57494517,103840.0,103830.0,0.25064857]
[1746864258193,1.57494517,103840.0,103830.0,0.08464857]
[1746864259795,1.46803625,103840.0,103830.0,0.08464857]
[1746864259996,1.57494517,103840.0,103830.0,0.08464857]
[1746864261298,1.57494517,103840.0,103830.0,0.25064857]
[1746864261491,1.46803625,103840.0,103830.0,0.25064857]
[1746864262295,1.57494517,103840.0,103830.0,0.25064857]
[1746864263197,1.09440517,103840.0,103830.0,0.25064857]
[1746864263398,0.92439625,103840.0,103830.0,0.35755749]
[1746864263593,0.7236,103840.0,103830.0,0.55015109]
[1746864263794,0.7236,103840.0,103830.0,0.64645773]
[1746864264191,0.9161751,103840.0,103830.0,0.64645773]
[1746864264600,0.7236,103840.0,103830.0,0.53954881]
[1746864264803,0.7236,103840.0,103830.0,0.64645773]
[1746864265306,0.7236,103840.0,103830.0,0.53954881]
[1746864266106,0.7236,103840.0,103830.0,0.64645773]
[1746864267405,0.9161751,103840.0,103830.0,0.64645773]
[1746864267803,0.7236,103840.0,103830.0,0.64645773]
[1746864268406,0.7236,103840.0,103830.0,0.66151479]
[1746864268902,0.002,103840.0,103830.0,0.66151479]
[1746864269099,0.002,103840.0,103830.0,0.66151376]
[1746864269496,0.002,103840.0,103830.0,0.76842268]
[1746864269703,0.002,103840.0,103830.0,0.86473068]
[1746864270294,0.002,103840.0,103830.0,0.75782176]
[1746864270499,0.002,103840.0,103830.0,0.66151376]
[1746864272399,0.002,103840.0,103830.0,0.76842268]
[1746864273002,0.002,103840.0,103830.0,0.76842163]
[1746864273504,0.002,103840.0,103830.0,1.47552963]
[1746864273703,0.66657266,103870.0,103860.0,0.192538]
[1746864273898,0.61012653,103870.0,103860.0,0.29944692]
[1746864274103,0.61012653,103870.0,103860.0,0.450838]
[1746864274304,0.61012653,103870.0,103860.0,0.55774692]
[1746864274605,0.97092653,103870.0,103860.0,0.450838]
[1746864274796,0.97092653,103870.0,103860.0,0.453838]
[1746864275606,0.97909014,103870.0,103860.0,0.453838]
[1746864275803,0.97909014,103870.0,103860.0,0.456838]
[1746864276203,0.73026523,103870.0,103860.0,0.456838]
[1746864276408,0.92278463,103870.0,103860.0,0.456838]
[1746864276609,0.73026523,103870.0,103860.0,0.67065584]
[1746864276820,0.73026523,103870.0,103860.0,0.78198825]
[1746864277121,0.73026523,103870.0,103860.0,0.87826707]
[1746864277310,0.73026523,103870.0,103860.0,0.77135815]
[1746864278018,0.00866523,103870.0,103860.0,1.13215815]
[1746864278912,0.00866523,103870.0,103860.0,1.23906707]
[1746864279122,0.3608,103890.0,103880.0,0.1925009]
[1746864279417,0.59647347,103900.0,103890.0,0.1924824]
[1746864279617,0.59647347,103900.0,103890.0,0.36349132]
[1746864280012,0.59647347,103900.0,103890.0,0.2565824]
[1746864280213,0.40400747,103900.0,103890.0,0.43697693]
[1746864281121,0.39576377,103900.0,103890.0,0.43697693]
[1746864281418,0.39776377,103900.0,103890.0,0.4225824]
[1746864281623,0.59022757,103900.0,103890.0,0.4225824]
[1746864281922,0.39776377,103900.0,103890.0,0.4225824]
[1746864282114,0.59022757,103900.0,103890.0,0.4225824]
[1746864282420,0.39776377,103900.0,103890.0,0.4529824]
[1746864282621,0.59222757,103900.0,103890.0,0.4529824]
[1746864284222,0.39976377,103900.0,103890.0,0.4529824]
[1746864284522,0.3648,103900.0,103890.0,0.55989132]
[1746864285121,0.3648,103900.0,103890.0,0.65614234]
[1746864285317,0.3648,103900.0,103890.0,0.56373924]
[1746864285514,0.3648,103900.0,103890.0,0.67064816]
[1746864285822,0.3638,103900.0,103890.0,0.67064816]
[1746864286623,0.3638,103900.0,103890.0,0.56373924]
[1746864286922,0.5562638,103900.0,103890.0,0.56373924]
[1746864287315,0.5542638,103900.0,103890.0,0.56373924]
[1746864287615,0.5552638,103900.0,103890.0,0.67064816]
[1746864287816,0.3628,103900.0,103890.0,0.67064816]
[1746864289522,0.002,103900.0,103890.0,1.03144816]
[1746864290820,0.7362939,103910.0,103900.0,0.1924638]
[1746864291019,0.68818,103910.0,103900.0,0.2565638]
[1746864291318,0.68818,103910.0,103900.0,0.4225638]
[1746864291720,0.71958,103910.0,103900.0,0.4225638]
[1746864291911,0.43091,103910.0,103900.0,0.4225638]
[1746864292719,0.43191,103910.0,103900.0,0.4225638]
[1746864293716,0.43291,103910.0,103900.0,0.4225638]
[1746864294921,0.6253553,103910.0,103900.0,0.4225638]
[1746864295221,0.43291,103910.0,103900.0,0.4225638]
[1746864295418,0.43291,103910.0,103900.0,0.52947272]
[1746864295812,0.43291,103910.0,103900.0,0.4225638]
[1746864297328,0.07211,103910.0,103900.0,0.4225638]
[1746864297526,0.43291,103910.0,103900.0,0.4225638]
[1746864297722,0.37001,103910.0,103900.0,0.52947272]
[1746864298226,0.00921,103910.0,103900.0,0.98651447]
[1746864298427,0.00921,103910.0,103900.0,1.00156057]
[1746864298620,0.00921,103910.0,103900.0,1.00156053]
[1746864299017,0.00921,103910.0,103900.0,1.0978]
[1746864299231,0.004,103920.0,103910.0,0.1924453]
[1746864299527,0.004,103920.0,103910.0,0.66338967]
[1746864299727,0.004,103920.0,103910.0,0.77029828]
[1746864300129,0.004,103920.0,103910.0,1.03254003]
[1746864300730,0.004,103920.0,103910.0,1.03253993]
[1746864300930,0.004,103920.0,103910.0,1.03253992]
[1746864301130,0.005,103920.0,103910.0,1.03253971]
[1746864301427,0.005,103920.0,103910.0,1.12877171]
[1746864301735,0.3608,103940.0,103930.0,0.1924083]
[1746864301920,0.3608,103940.0,103930.0,0.29931722]
[1746864302118,0.3608,103940.0,103930.0,0.4549083]
[1746864302324,0.5531898,103940.0,103930.0,0.4549083]
[1746864302524,0.3608,103940.0,103930.0,0.4549083]
[1746864302725,0.3608,103940.0,103930.0,0.56617357]
[1746864302925,0.3608,103940.0,103930.0,0.67308249]
[1746864303125,0.3608,103940.0,103930.0,0.56617338]
[1746864303329,0.004,103950.0,103940.0,0.1923898]
[1746864303519,0.004,103950.0,103940.0,0.2553898]
[1746864303833,0.004,103950.0,103940.0,0.37733919]
[1746864304029,0.004,103950.0,103940.0,0.2553898]
[1746864304329,0.004,103950.0,103940.0,0.63954388]
[1746864304829,0.004,103950.0,103940.0,0.53263496]
[1746864305026,0.004,103950.0,103940.0,2.13954388]
[1746864305526,0.007,103950.0,103940.0,2.13954388]
[1746864305834,0.007,103950.0,103940.0,2.03263496]
[1746864305835,0.011,103950.0,103940.0,2.03263496]
[1746864306033,0.011,103950.0,103940.0,2.13954388]
[1746864306233,0.011,103950.0,103940.0,2.03263496]
[1746864306531,0.007,103950.0,103940.0,2.13954388]
[1746864306731,0.009,103950.0,103940.0,2.03263496]
[1746864307028,0.009,103950.0,103940.0,2.13954388]
[1746864307229,0.009,103950.0,103940.0,2.13954382]
[1746864307431,0.006,103950.0,103940.0,2.01759452]
[1746864307626,0.2003713,103950.0,103940.0,2.0326349]
[1746864307821,0.3688,103950.0,103940.0,2.0326349]
[1746864308033,0.4307,103950.0,103940.0,2.0326349]
[1746864308728,0.4307,103950.0,103940.0,0.5326349]
[1746864309031,0.6230713,103950.0,103940.0,0.5326349]
[1746864309331,0.6546713,103950.0,103940.0,0.43643018]
[1746864309530,0.6546713,103950.0,103940.0,0.43463318]
[1746864310428,0.4623,103950.0,103940.0,0.43463318]
[1746864310628,0.6546713,103950.0,103940.0,0.4346335]
[1746864312027,0.4307,103950.0,103940.0,0.4346335]
[1746864312334,0.6230713,103950.0,103940.0,0.54154242]
[1746864312527,0.2622713,103950.0,103940.0,0.54154242]
[1746864312724,0.3688,103950.0,103940.0,0.54154242]
[1746864312928,0.008,103950.0,103940.0,0.53083822]
[1746864313232,0.008,103950.0,103940.0,0.63774714]
[1746864313428,0.008,103950.0,103940.0,0.53083822]
[1746864313631,0.008,103950.0,103940.0,0.63774714]
[1746864314032,0.008,103950.0,103940.0,0.53083822]
[1746864314332,0.008,103950.0,103940.0,0.63774714]
[1746864314333,0.006,103950.0,103940.0,0.63774714]
[1746864314525,0.006,103950.0,103940.0,0.53083822]
[1746864314729,0.006,103950.0,103940.0,0.63774714]
[1746864314927,0.006,103950.0,103940.0,0.53083822]
[1746864315230,0.006,103950.0,103940.0,0.63774714]
[1746864315536,0.004,103950.0,103940.0,0.89163822]
[1746864316331,0.004,103950.0,103940.0,0.99854714]
[1746864316533,0.004,103950.0,103940.0,0.99854389]
[1746864316728,0.004,103950.0,103940.0,1.00054389]
[1746864316932,0.004,103950.0,103940.0,0.89363497]
[1746864317132,0.004,103950.0,103940.0,1.00054389]
[1746864317443,0.004,103950.0,103940.0,1.00154389]
[1746864317936,0.004,103950.0,103940.0,2.50154389]
[1746864318528,0.004,103950.0,103940.0,2.39463497]
[1746864318736,0.004,103950.0,103940.0,2.50154389]
[1746864320538,0.004,103950.0,103940.0,2.39463497]
[1746864320846,0.004,103950.0,103940.0,3.11902792]
[1746864321332,0.560364,103960.0,103950.0,0.1923713]
[1746864321536,0.560364,103960.0,103950.0,0.30020875]
[1746864321838,0.36801,103960.0,103950.0,0.40711767]
[1746864322032,0.36801,103960.0,103950.0,0.51788886]
[1746864322230,0.36801,103960.0,103950.0,0.68388886]
[1746864322429,0.36801,103960.0,103950.0,0.57697994]
[1746864322430,0.5603628,103960.0,103950.0,0.57697994]
[1746864322738,0.6582628,103960.0,103950.0,0.48077522]
[1746864322933,0.6582628,103960.0,103950.0,0.58768414]
[1746864323129,0.6582628,103960.0,103950.0,0.48077522]
[1746864323334,0.46591,103960.0,103950.0,0.48077522]
[1746864323535,0.46591,103960.0,103950.0,0.58768414]
[1746864323845,0.0979,103960.0,103950.0,0.58768414]
[1746864324144,0.0979,103960.0,103950.0,0.58768475]
[1746864325138,0.0979,103960.0,103950.0,0.48077583]
[1746864325440,0.0979,103960.0,103950.0,0.78276903]
[1746864325944,0.0979,103960.0,103950.0,0.78276902]
[1746864326146,0.0979,103960.0,103950.0,0.6758601]
[1746864326336,0.0979,103960.0,103950.0,0.78276902]
[1746864327039,0.0979,103960.0,103950.0,0.6758601]
[1746864327536,0.0979,103960.0,103950.0,0.78276902]
[1746864327737,0.0979,103960.0,103950.0,0.78276925]
[1746864328041,0.0979,103960.0,103950.0,0.67586033]
[1746864328240,0.0979,103960.0,103950.0,0.78276925]
[1746864330432,0.6510528,103960.0,103950.0,0.61536033]
[1746864330640,0.6510528,103960.0,103950.0,0.76213143]
[1746864331243,0.6510528,103960.0,103950.0,0.59613143]
[1746864332343,0.6510528,103960.0,103950.0,0.40376013]
[1746864332536,0.6510528,103960.0,103950.0,0.59613143]
[1746864332841,0.6510528,103960.0,103950.0,0.62773143]
[1746864333345,0.6510528,103960.0,103950.0,0.73464035]
[1746864333944,0.0317,103960.0,103950.0,1.09544035]
[1746864334146,0.72116381,103970.0,103960.0,0.1923528]
[1746864334339,0.75436381,103970.0,103960.0,0.39286172]
[1746864334644,0.75436381,103970.0,103960.0,0.40790061]
[1746864334947,0.75436381,103970.0,103960.0,0.30099169]
[1746864335447,0.75636381,103970.0,103960.0,0.2859528]
[1746864335650,0.75636381,103970.0,103960.0,0.0936]
[1746864336340,0.75636381,103970.0,103960.0,0.27463819]
[1746864336542,0.75836381,103970.0,103960.0,0.27463819]
[1746864337650,0.75836381,103970.0,103960.0,0.46699099]
[1746864337858,0.75836381,103970.0,103960.0,0.27463819]
[1746864338646,0.75836381,103970.0,103960.0,0.46699099]
[1746864339250,0.75836381,103970.0,103960.0,0.27463819]
[1746864339653,0.86527273,103970.0,103960.0,0.27463819]
[1746864339851,0.75836381,103970.0,103960.0,0.27463819]
[1746864340152,0.75836381,103970.0,103960.0,0.2596]
[1746864340751,0.75836381,103970.0,103960.0,0.4519528]
[1746864340947,0.75836381,103970.0,103960.0,0.2596]
[1746864342256,0.75836381,103970.0,103960.0,0.46699129]
[1746864342948,0.75836381,103970.0,103960.0,0.4519528]
[1746864344246,0.75836381,103970.0,103960.0,0.46699129]
[1746864345352,0.01265361,103970.0,103960.0,0.67008642]
[1746864345940,0.01265361,103970.0,103960.0,1.03088642]
[1746864346141,0.20498791,103970.0,103960.0,1.03088642]
[1746864346346,0.23508791,103970.0,103960.0,0.67008642]
[1746864346549,0.20498791,103970.0,103960.0,0.67008642]
[1746864346754,0.20498791,103970.0,103960.0,0.67008628]
[1746864348552,0.20498791,103970.0,103960.0,0.56317736]
[1746864348753,0.20498791,103970.0,103960.0,0.67008522]
[1746864348953,0.01265361,103970.0,103960.0,0.67008522]
[1746864349252,0.20498791,103970.0,103960.0,0.67008522]
[1746864349956,0.20498791,103970.0,103960.0,0.5631763]
[1746864350155,0.20498791,103970.0,103960.0,0.67008522]
[1746864350451,0.20498791,103970.0,103960.0,0.3079235]
[1746864350657,0.62898791,103970.0,103960.0,0.3702235]
[1746864350858,0.62898791,103970.0,103960.0,0.5625763]
[1746864351559,0.59658791,103970.0,103960.0,0.5625763]
[1746864351749,0.56578791,103970.0,103960.0,0.5625763]
[1746864352357,0.56578791,103970.0,103960.0,0.66948522]
[1746864352760,0.56578791,103970.0,103960.0,0.5625763]
[1746864353056,0.56578791,103970.0,103960.0,0.66948522]
[1746864353258,0.20498791,103970.0,103960.0,0.66948522]
[1746864355259,0.20498791,103970.0,103960.0,0.5625763]
[1746864355757,0.20498791,103970.0,103960.0,0.66948522]
[1746864356156,0.20498791,103970.0,103960.0,0.5625763]
[1746864356358,0.20498791,103970.0,103960.0,0.66948522]
[1746864356954,0.01265361,103970.0,103960.0,0.66948522]
[1746864357150,0.01265361,103970.0,103960.0,1.03028522]
[1746864357458,0.01265361,103970.0,103960.0,0.9233763]
[1746864357758,0.01265361,103970.0,103960.0,1.03028522]
[1746864359162,0.01265361,103970.0,103960.0,1.03028513]
[1746864359364,0.01265361,103970.0,103960.0,1.03028385]
[1746864359764,0.1,104000.0,103990.0,0.1922973]
[1746864359964,0.1,104000.0,103990.0,0.67504214]
[1746864360162,0.1,104000.0,103990.0,0.93874214]
[1746864360362,0.1,104000.0,103990.0,1.0349006]
[1746864360862,0.1,104000.0,103990.0,1.03489539]
[1746864361262,0.1,104000.0,103990.0,1.03489569]
[1746864362169,0.103,104000.0,103990.0,1.0348959]
[1746864363261,0.1,104000.0,103990.0,1.0408959]
[1746864365966,0.01121,104010.0,104000.0,0.1922788]
[1746864366171,1e-07,104010.0,104000.0,0.9045189]
[1746864366369,1e-07,104010.0,104000.0,2.60757582]
[1746864366565,1e-07,104010.0,104000.0,2.70372504]
[1746864367769,1e-07,104010.0,104000.0,2.60757704]
[1746864368266,1e-07,104010.0,104000.0,2.70372504]
[1746864369363,1e-07,104010.0,104000.0,2.50066812]
[1746864369668,1e-07,104010.0,104000.0,2.5006662]
[1746864370062,1e-07,104010.0,104000.0,2.3366662]
[1746864370263,1e-07,104010.0,104000.0,2.44557512]
[1746864370767,1e-07,104010.0,104000.0,2.3386662]
[1746864372962,1e-07,104010.0,104000.0,2.44557512]
[1746864373167,1e-07,104010.0,104000.0,2.3386662]
[1746864377367,1e-07,104010.0,104000.0,2.44557512]
[1746864377669,1e-07,104010.0,104000.0,2.23175728]
[1746864377870,1e-07,104010.0,104000.0,2.44557512]
[1746864378578,0.4247,104030.0,104020.0,0.1922418]
[1746864378763,0.4247,104030.0,104020.0,0.29915072]
[1746864378965,0.6169233,104030.0,104020.0,0.36275072]
[1746864379269,0.6169233,104030.0,104020.0,0.36702007]
[1746864379465,0.6169233,104030.0,104020.0,0.47392899]
[1746864379671,0.4247,104030.0,104020.0,0.47392899]
[1746864379868,0.4247,104030.0,104020.0,0.36702007]
[1746864380066,0.4247,104030.0,104020.0,0.45889994]
[1746864380267,0.4257,104030.0,104020.0,0.35199102]
[1746864380568,0.4257,104030.0,104020.0,0.36702007]
[1746864380767,0.4257,104030.0,104020.0,0.47392899]
[1746864380970,0.4257,104030.0,104020.0,0.47392898]
[1746864381275,0.4267,104030.0,104020.0,0.36702006]
[1746864381474,0.4267,104030.0,104020.0,0.45889994]
[1746864381675,0.6189233,104030.0,104020.0,0.2226418]
[1746864382273,0.7849233,104030.0,104020.0,0.2226418]
[1746864382473,0.7849233,104030.0,104020.0,0.23767194]
[1746864383777,0.7849233,104030.0,104020.0,0.25202415]
[1746864384576,0.7849233,104030.0,104020.0,0.25202359]
[1746864386066,0.7849233,104030.0,104020.0,0.28402359]
[1746864386977,0.7849233,104030.0,104020.0,0.39093251]
[1746864387772,0.2319,104030.0,104020.0,0.84786324]
[1746864388264,0.2319,104030.0,104020.0,0.84786232]
[1746864388875,0.168,104030.0,104020.0,0.84786232]
[1746864389067,0.2013,104030.0,104020.0,0.84786232]
[1746864389271,0.0353,104030.0,104020.0,0.84786232]
[1746864389472,0.002,104030.0,104020.0,0.84786232]
[1746864389874,0.0353,104030.0,104020.0,0.84786232]
[1746864390070,0.0667,104030.0,104020.0,1.01386211]
[1746864390573,0.0667,104030.0,104020.0,0.90695319]
[1746864390775,0.0667,104030.0,104020.0,1.01386211]
[1746864390969,0.002,104030.0,104020.0,1.01386211]
[1746864391366,0.0353,104030.0,104020.0,1.01386211]
[1746864391777,0.0343,104030.0,104020.0,1.01386211]
[1746864392077,0.0343,104030.0,104020.0,0.84786211]
[1746864392276,0.0343,104030.0,104020.0,0.74095319]
[1746864392589,0.0343,104030.0,104020.0,0.84786211]
[1746864392777,0.0333,104030.0,104020.0,0.84786211]
[1746864392972,0.0653,104030.0,104020.0,0.84786211]
[1746864394076,0.0653,104030.0,104020.0,0.74095319]
[1746864394271,0.0653,104030.0,104020.0,0.84786211]
[1746864395366,0.0653,104030.0,104020.0,0.74095284]
[1746864395567,0.0653,104030.0,104020.0,0.84786176]
[1746864396771,0.0653,104030.0,104020.0,0.74095284]
[1746864396975,0.0333,104030.0,104020.0,0.84786176]
[1746864397171,0.44641617,104040.0,104030.0,0.1922233]
[1746864397376,0.4711,104040.0,104030.0,0.40886032]
[1746864397774,0.1103,104040.0,104030.0,0.76966032]
[1746864398373,0.1113,104040.0,104030.0,0.40886032]
[1746864398573,0.0784,104040.0,104030.0,0.86578181]
[1746864399081,0.0453,104040.0,104030.0,0.86578181]
[1746864399276,0.0463,104040.0,104030.0,0.86578181]
[1746864399471,0.0463,104040.0,104030.0,0.75887289]
[1746864399675,0.0784,104040.0,104030.0,0.86578181]
[1746864399885,0.0774,104040.0,104030.0,0.86578181]
[1746864400184,0.0774,104040.0,104030.0,0.75887289]
[1746864400380,0.0774,104040.0,104030.0,0.86578181]
[1746864400781,0.0774,104040.0,104030.0,0.75887206]
[1746864400977,0.0774,104040.0,104030.0,0.86578098]
[1746864401176,0.0112,104040.0,104030.0,0.86578098]
[1746864403482,0.0112,104040.0,104030.0,0.75887206]
[1746864403677,0.0424,104040.0,104030.0,0.86578033]
[1746864404083,0.1772,104040.0,104030.0,0.86578033]
[1746864404780,0.1772,104040.0,104030.0,0.75887141]
[1746864404987,0.1772,104040.0,104030.0,0.86578033]
[1746864405489,0.7628049,104040.0,104030.0,0.39807141]
[1746864405786,0.6012,104040.0,104030.0,0.40885884]
[1746864406187,0.6012,104040.0,104030.0,0.40885965]
[1746864406583,0.6012,104040.0,104030.0,0.40885949]
[1746864406889,0.2404,104040.0,104030.0,0.40885949]
[1746864407088,0.1772,104040.0,104030.0,0.76965949]
[1746864407483,0.1772,104040.0,104030.0,0.66275057]
[1746864408092,0.1772,104040.0,104030.0,0.76965949]
[1746864408291,0.1772,104040.0,104030.0,0.86578098]
[1746864409180,0.0112,104040.0,104030.0,0.86578098]
[1746864409693,0.0112,104040.0,104030.0,0.86559696]
[1746864409891,0.0112,104040.0,104030.0,0.86559628]
[1746864410787,0.004,104040.0,104030.0,0.86559628]
[1746864413084,0.17,104040.0,104030.0,0.86559628]
[1746864413586,0.17,104040.0,104030.0,0.75868736]
[1746864414192,0.17,104040.0,104030.0,0.86559628]
[1746864414690,0.17,104040.0,104030.0,0.9725052]
[1746864414992,0.17,104040.0,104030.0,0.86559628]
[1746864415183,0.004,104040.0,104030.0,0.86559628]
[1746864415785,0.0112,104040.0,104030.0,0.86559628]
[1746864415988,0.0112,104040.0,104030.0,0.86759628]
[1746864416179,0.1772,104040.0,104030.0,0.86959628]
[1746864417385,0.1772,104040.0,104030.0,0.86959538]
[1746864418091,0.55839599,104070.0,104060.0,0.1921679]
[1746864418290,0.29099599,104070.0,104060.0,0.31410251]
[1746864418495,0.29099599,104070.0,104060.0,0.30389359]
[1746864418693,0.65179599,104070.0,104060.0,0.30389359]
[1746864419194,0.59694219,104070.0,104060.0,0.41080251]
[1746864419382,0.17444219,104070.0,104060.0,0.50689629]
[1746864419582,0.17744219,104070.0,104060.0,0.50689629]
[1746864419782,0.20834219,104070.0,104060.0,0.50689629]
[1746864419983,0.56914219,104070.0,104060.0,0.39998737]
[1746864420183,0.79309169,104070.0,104060.0,0.36948737]
[1746864420385,0.79109169,104070.0,104060.0,0.27339359]
[1746864421292,0.79109169,104070.0,104060.0,0.27339149]
[1746864421886,0.78909169,104070.0,104060.0,0.2884151]
[1746864422086,0.78909169,104070.0,104060.0,0.27339151]
[1746864426186,0.78909169,104070.0,104060.0,0.38030043]
[1746864426388,0.59694219,104070.0,104060.0,0.27339151]
[1746864426590,0.59694219,104070.0,104060.0,0.38030043]
[1746864426991,0.53424219,104070.0,104060.0,0.47639421]
[1746864428199,0.53424219,104070.0,104060.0,0.36948529]
[1746864428397,0.17344219,104070.0,104060.0,0.47639421]
[1746864429100,0.172,104070.0,104060.0,0.73028529]
[1746864429298,0.03607147,104070.0,104060.0,0.82637729]
[1746864429593,1e-07,104080.0,104070.0,0.1921495]
[1746864429797,1e-07,104080.0,104070.0,0.84419095]
[1746864429995,1e-07,104080.0,104070.0,0.72645711]
[1746864430193,1e-07,104080.0,104070.0,2.39245252]
[1746864430396,1e-07,104080.0,104070.0,2.59125134]
[1746864430591,1e-07,104080.0,104070.0,2.39246145]
[1746864430896,1e-07,104080.0,104070.0,2.03166145]
[1746864431098,0.1660001,104080.0,104070.0,2.44027929]
[1746864431296,0.1660001,104080.0,104070.0,2.22646324]
[1746864431998,0.1660001,104080.0,104070.0,2.4402805]
[1746864432195,0.1660001,104080.0,104070.0,2.22646266]
[1746864432389,0.1660001,104080.0,104070.0,2.4402805]
[1746864432595,0.1660001,104080.0,104070.0,2.4730805]
[1746864432892,0.1660001,104080.0,104070.0,2.4750805]
[1746864433088,1e-07,104080.0,104070.0,2.26126266]
[1746864433288,1e-07,104080.0,104070.0,2.4750805]
[1746864433491,1e-07,104080.0,104070.0,2.4780805]
[1746864433693,1e-07,104080.0,104070.0,2.26426266]
[1746864433898,0.27,104100.0,104090.0,0.1921125]
[1746864434096,0.104,104100.0,104090.0,0.92873066]
[1746864434296,0.104,104100.0,104090.0,1.02513066]
[1746864434602,0.2960941,104100.0,104090.0,1.80353066]
[1746864434797,0.2960941,104100.0,104090.0,0.58297205]
[1746864434999,0.3599941,104100.0,104090.0,0.31821836]
[1746864435206,0.5567941,104100.0,104090.0,0.31821836]
[1746864435395,0.3023,104100.0,104090.0,0.42512728]
[1746864435698,0.27,104100.0,104090.0,0.41428535]
[1746864435891,0.3026,104100.0,104090.0,0.41428535]
[1746864436090,0.271,104100.0,104090.0,0.88199427]
[1746864436501,0.272,104100.0,104090.0,0.52119427]
[1746864436696,0.272,104100.0,104090.0,0.88199427]
[1746864437193,0.272,104100.0,104090.0,0.77508535]
[1746864437399,0.272,104100.0,104090.0,0.88199427]
[1746864439397,0.272,104100.0,104090.0,0.77508535]
[1746864439901,0.272,104100.0,104090.0,0.88199427]
[1746864441002,0.272,104100.0,104090.0,0.88199284]
[1746864441597,0.272,104100.0,104090.0,0.77508392]
[1746864441795,0.272,104100.0,104090.0,0.88199284]
[1746864441993,0.272,104100.0,104090.0,0.77508392]
[1746864442200,0.272,104100.0,104090.0,0.88199284]
[1746864442701,0.272,104100.0,104090.0,0.77508392]
[1746864443007,0.272,104100.0,104090.0,0.41428392]
[1746864443206,0.9186941,104100.0,104090.0,0.41428392]
[1746864443702,0.9186941,104100.0,104090.0,0.25501783]
[1746864444399,0.7266,104100.0,104090.0,0.39202675]
[1746864444610,0.6938,104100.0,104090.0,0.48809284]